[Event "Titled Tuesday Blitz January 10 Early 2023"]
[White "Rakhmatullaev, Almas"]
[Black "Harshavardhan G B"]
[WhiteFideId "14205793"]
[BlackFideId "25059009"]
[WhiteElo "2275"]
[BlackElo "2408"]
[Result "1-0"]
[Round "08"]
[TimeControl "180+2"]
[Date "2023.01.10"]
[WhiteClock "0:00:06"]
[BlackClock "0:00:01"]

1. e4 {[%clk 0:03:00]}  e5 {[%clk 0:02:54]} 2. Nf3 {[%clk 0:03:00]}  Nc6 {[%clk 0:02:54]} 3. d4 {[%clk 0:03:01]}  exd4 {[%clk 0:02:53]} 4. Nxd4 {[%clk 0:03:02]}  Bc5 {[%clk 0:02:53]} 5. Nf5 {[%clk 0:03:02]}  d5 {[%clk 0:02:52]} 6. Nxg7+ {[%clk 0:03:02]}  Kf8 {[%clk 0:02:53]} 7. Nh5 {[%clk 0:03:02]}  dxe4 {[%clk 0:02:49]} 8. Qxd8+ {[%clk 0:03:00]}  Nxd8 {[%clk 0:02:49]} 9. Nc3 {[%clk 0:02:46]}  Bf5 {[%clk 0:02:48]} 10. Ng3 {[%clk 0:02:44]}  Bg6 {[%clk 0:02:48]} 11. Ncxe4 {[%clk 0:02:42]}  Bb6 {[%clk 0:02:45]} 12. Bd2 {[%clk 0:02:26]}  h5 {[%clk 0:02:42]} 13. h4 {[%clk 0:02:15]}  Nc6 {[%clk 0:02:40]} 14. O-O-O {[%clk 0:02:12]}  Nge7 {[%clk 0:02:31]} 15. Bc3 {[%clk 0:02:01]}  Rh6 {[%clk 0:02:29]} 16. Bc4 {[%clk 0:01:42]}  Na5 {[%clk 0:01:52]} 17. Bd3 {[%clk 0:01:21]}  Nac6 {[%clk 0:01:49]} 18. Rhf1 {[%clk 0:01:11]}  Rd8 {[%clk 0:01:35]} 19. Kb1 {[%clk 0:00:58]}  Nd5 {[%clk 0:01:16]} 20. Bd2 {[%clk 0:00:58]}  Rh8 {[%clk 0:01:16]} 21. f4 {[%clk 0:00:50]}  Bxe4 {[%clk 0:01:06]} 22. Bxe4 {[%clk 0:00:45]}  Nce7 {[%clk 0:00:37]} 23. c4 {[%clk 0:00:39]}  Nf6 {[%clk 0:00:33]} 24. Bc3 {[%clk 0:00:36]}  Rxd1+ {[%clk 0:00:20]} 25. Rxd1 {[%clk 0:00:37]}  Kg7 {[%clk 0:00:18]} 26. Rd7 {[%clk 0:00:32]}  Bc5 {[%clk 0:00:11]} 27. Rxc7 {[%clk 0:00:17]}  Bd6 {[%clk 0:00:10]} 28. Rd7 {[%clk 0:00:10]}  Bxf4 {[%clk 0:00:10]} 29. Rxe7 {[%clk 0:00:06]}  Bxg3 {[%clk 0:00:10]} 30. Bd5 {[%clk 0:00:07]}  Rf8 {[%clk 0:00:10]} 31. Rxb7 {[%clk 0:00:07]}  Bxh4 {[%clk 0:00:10]} 32. Rxa7 {[%clk 0:00:06]}  Bg5 {[%clk 0:00:08]} 33. Bf3 {[%clk 0:00:06]}  h4 {[%clk 0:00:08]} 34. c5 {[%clk 0:00:07]}  Kg6 {[%clk 0:00:08]} 35. c6 {[%clk 0:00:07]}  Kf5 {[%clk 0:00:07]} 36. b4 {[%clk 0:00:05]}  Rd8 {[%clk 0:00:01]} 37. b5 {[%clk 0:00:06]}  Rd3 {[%clk 0:00:01]} 38. Kc2 {[%clk 0:00:06]} 1-0


[Site "https://www.chess.com"]

[Event "Titled Tuesday Blitz January 10 Early 2023"]
[White "Paravyan, David"]
[Black "Postny, Evgeny"]
[WhiteFideId "4194985"]
[BlackFideId "2804344"]
[WhiteElo "2601"]
[BlackElo "2549"]
[Result "1-0"]
[Round "08"]
[TimeControl "180+2"]
[Date "2023.01.10"]
[WhiteClock "0:00:10"]
[BlackClock "0:00:09"]

1. e4 {[%clk 0:03:00]}  c6 {[%clk 0:02:58]} 2. d4 {[%clk 0:03:00]}  d5 {[%clk 0:02:59]} 3. e5 {[%clk 0:03:01]}  c5 {[%clk 0:02:58]} 4. Nf3 {[%clk 0:03:01]}  e6 {[%clk 0:02:57]} 5. c3 {[%clk 0:03:00]}  Nc6 {[%clk 0:02:56]} 6. Bd3 {[%clk 0:02:59]}  Nge7 {[%clk 0:02:51]} 7. O-O {[%clk 0:02:59]}  Nf5 {[%clk 0:02:52]} 8. Bc2 {[%clk 0:02:54]}  Be7 {[%clk 0:02:50]} 9. dxc5 {[%clk 0:02:51]}  Bxc5 {[%clk 0:02:50]} 10. Bg5 {[%clk 0:02:44]}  Nfe7 {[%clk 0:02:36]} 11. Nbd2 {[%clk 0:02:40]}  h6 {[%clk 0:02:36]} 12. Bh4 {[%clk 0:02:38]}  g5 {[%clk 0:02:27]} 13. Bg3 {[%clk 0:02:37]}  Nf5 {[%clk 0:02:28]} 14. Nb3 {[%clk 0:02:26]}  Bb6 {[%clk 0:02:28]} 15. Nbd4 {[%clk 0:02:15]}  Ncxd4 {[%clk 0:02:22]} 16. Nxd4 {[%clk 0:02:13]}  Nxd4 {[%clk 0:02:16]} 17. cxd4 {[%clk 0:02:13]}  h5 {[%clk 0:02:13]} 18. h3 {[%clk 0:02:13]}  Bd7 {[%clk 0:02:08]} 19. Qd2 {[%clk 0:02:07]}  Qe7 {[%clk 0:02:03]} 20. Rfd1 {[%clk 0:01:55]}  O-O-O {[%clk 0:02:01]} 21. a4 {[%clk 0:01:49]}  Rdg8 {[%clk 0:01:56]} 22. a5 {[%clk 0:01:44]}  Bc7 {[%clk 0:01:56]} 23. a6 {[%clk 0:01:25]}  b6 {[%clk 0:01:56]} 24. f3 {[%clk 0:01:17]}  g4 {[%clk 0:01:53]} 25. hxg4 {[%clk 0:01:18]}  hxg4 {[%clk 0:01:52]} 26. f4 {[%clk 0:01:19]}  f6 {[%clk 0:01:42]} 27. Rac1 {[%clk 0:01:04]}  fxe5 {[%clk 0:01:37]} 28. dxe5 {[%clk 0:01:03]}  Kb8 {[%clk 0:01:35]} 29. Bd3 {[%clk 0:01:01]}  Rc8 {[%clk 0:01:11]} 30. f5 {[%clk 0:00:44]}  b5 {[%clk 0:00:56]} 31. Rxc7 {[%clk 0:00:40]}  Rxc7 {[%clk 0:00:54]} 32. f6 {[%clk 0:00:33]}  Qf7 {[%clk 0:00:44]} 33. Qb4 {[%clk 0:00:33]}  Ka8 {[%clk 0:00:39]} 34. Qxg4 {[%clk 0:00:25]}  Rg8 {[%clk 0:00:35]} 35. Qh4 {[%clk 0:00:21]}  Bc6 {[%clk 0:00:31]} 36. Bf2 {[%clk 0:00:18]}  d4 {[%clk 0:00:30]} 37. Be4 {[%clk 0:00:18]}  Rd8 {[%clk 0:00:11]} 38. Rxd4 {[%clk 0:00:12]}  Rxd4 {[%clk 0:00:09]} 39. Qh8+ {[%clk 0:00:10]} 1-0


[Site "https://www.chess.com"]

[Event "Titled Tuesday Blitz January 10 Early 2023"]
[White "Rakhmanov, Aleksandr"]
[Black "Oparin, Grigoriy"]
[WhiteFideId "4173708"]
[BlackFideId "24125890"]
[WhiteElo "2632"]
[BlackElo "2667"]
[Result "1/2-1/2"]
[Round "08"]
[TimeControl "180+2"]
[Date "2023.01.10"]
[WhiteClock "0:00:04"]
[BlackClock "0:00:06"]

1. d4 {[%clk 0:03:00]}  Nf6 {[%clk 0:02:59]} 2. c4 {[%clk 0:03:01]}  e6 {[%clk 0:03:00]} 3. Nc3 {[%clk 0:03:01]}  Bb4 {[%clk 0:03:01]} 4. e3 {[%clk 0:03:02]}  b6 {[%clk 0:03:01]} 5. Bd3 {[%clk 0:03:02]}  Bb7 {[%clk 0:03:01]} 6. Ne2 {[%clk 0:03:02]}  O-O {[%clk 0:02:59]} 7. O-O {[%clk 0:03:01]}  c5 {[%clk 0:02:58]} 8. a3 {[%clk 0:03:01]}  Bxc3 {[%clk 0:02:47]} 9. Nxc3 {[%clk 0:03:02]}  d6 {[%clk 0:02:43]} 10. d5 {[%clk 0:03:01]}  exd5 {[%clk 0:02:25]} 11. cxd5 {[%clk 0:03:02]}  Nbd7 {[%clk 0:02:25]} 12. e4 {[%clk 0:03:02]}  Re8 {[%clk 0:02:25]} 13. Bg5 {[%clk 0:03:01]}  Ne5 {[%clk 0:02:22]} 14. Re1 {[%clk 0:02:55]}  h6 {[%clk 0:02:12]} 15. Bh4 {[%clk 0:02:54]}  a6 {[%clk 0:02:02]} 16. a4 {[%clk 0:02:46]}  g5 {[%clk 0:02:00]} 17. Bg3 {[%clk 0:02:45]}  Ng6 {[%clk 0:01:58]} 18. Qf3 {[%clk 0:02:30]}  Ne5 {[%clk 0:01:53]} 19. Qe3 {[%clk 0:02:19]}  Nfg4 {[%clk 0:01:44]} 20. Qd2 {[%clk 0:02:16]}  h5 {[%clk 0:01:35]} 21. f4 {[%clk 0:01:59]}  h4 {[%clk 0:01:36]} 22. fxe5 {[%clk 0:00:52]}  hxg3 {[%clk 0:01:36]} 23. hxg3 {[%clk 0:00:53]}  Nxe5 {[%clk 0:01:31]} 24. Rf1 {[%clk 0:00:53]}  Bc8 {[%clk 0:01:28]} 25. Be2 {[%clk 0:00:48]}  Kg7 {[%clk 0:01:26]} 26. Rf2 {[%clk 0:00:38]}  Rh8 {[%clk 0:01:26]} 27. Nd1 {[%clk 0:00:35]}  Rh6 {[%clk 0:01:23]} 28. Rf1 {[%clk 0:00:22]}  f6 {[%clk 0:01:16]} 29. Ne3 {[%clk 0:00:21]}  Ra7 {[%clk 0:01:10]} 30. Nc4 {[%clk 0:00:21]}  Re7 {[%clk 0:01:10]} 31. Rae1 {[%clk 0:00:17]}  Qc7 {[%clk 0:00:45]} 32. Qc3 {[%clk 0:00:15]}  Bd7 {[%clk 0:00:40]} 33. Nxe5 {[%clk 0:00:14]}  Rxe5 {[%clk 0:00:40]} 34. Bxa6 {[%clk 0:00:14]}  Bxa4 {[%clk 0:00:34]} 35. Bd3 {[%clk 0:00:13]}  Bd7 {[%clk 0:00:27]} 36. Ra1 {[%clk 0:00:13]}  b5 {[%clk 0:00:23]} 37. Bc2 {[%clk 0:00:05]}  Rh8 {[%clk 0:00:15]} 38. Ra6 {[%clk 0:00:04]}  Rhe8 {[%clk 0:00:15]} 39. Rfa1 {[%clk 0:00:04]}  R8e7 {[%clk 0:00:15]} 40. Ra7 {[%clk 0:00:04]}  Qd8 {[%clk 0:00:16]} 41. Qa5 {[%clk 0:00:04]}  Qxa5 {[%clk 0:00:15]} 42. R1xa5 {[%clk 0:00:05]}  Be8 {[%clk 0:00:14]} 43. Rxe7+ {[%clk 0:00:04]}  Rxe7 {[%clk 0:00:15]} 44. Ra6 {[%clk 0:00:05]}  Rd7 {[%clk 0:00:15]} 45. Rb6 {[%clk 0:00:06]}  Rd8 {[%clk 0:00:15]} 46. Rb7+ {[%clk 0:00:05]}  Kf8 {[%clk 0:00:15]} 47. Bd1 {[%clk 0:00:05]}  b4 {[%clk 0:00:15]} 48. Bg4 {[%clk 0:00:05]}  Bg6 {[%clk 0:00:14]} 49. Bf5 {[%clk 0:00:05]}  Bf7 {[%clk 0:00:10]} 50. g4 {[%clk 0:00:05]}  Ra8 {[%clk 0:00:09]} 51. Rb6 {[%clk 0:00:04]}  Ra2 {[%clk 0:00:09]} 52. Rxd6 {[%clk 0:00:04]}  Rxb2 {[%clk 0:00:09]} 53. Rd8+ {[%clk 0:00:05]}  Kg7 {[%clk 0:00:09]} 54. Rd7 {[%clk 0:00:06]}  Kf8 {[%clk 0:00:09]} 55. Rd8+ {[%clk 0:00:06]}  Kg7 {[%clk 0:00:09]} 56. Rd7 {[%clk 0:00:03]}  Kf8 {[%clk 0:00:06]} 57. Rd8+ {[%clk 0:00:04]} 1/2-1/2


[Site "https://www.chess.com"]

[Event "Titled Tuesday Blitz January 10 Early 2023"]
[White "Aradhya, Garg"]
[Black "Keymer, Vincent"]
[WhiteFideId "25006746"]
[BlackFideId "12940690"]
[WhiteElo "2284"]
[BlackElo "2700"]
[Result "0-1"]
[Round "08"]
[TimeControl "180+2"]
[Date "2023.01.10"]
[WhiteClock "0:00:09"]
[BlackClock "0:00:23"]

1. d4 {[%clk 0:03:00]}  Nf6 {[%clk 0:02:59]} 2. c4 {[%clk 0:03:01]}  e6 {[%clk 0:02:59]} 3. Nc3 {[%clk 0:02:59]}  Bb4 {[%clk 0:02:59]} 4. e3 {[%clk 0:02:59]}  O-O {[%clk 0:02:59]} 5. Bd2 {[%clk 0:02:58]}  Nc6 {[%clk 0:02:58]} 6. Bd3 {[%clk 0:02:56]}  e5 {[%clk 0:02:55]} 7. d5 {[%clk 0:02:44]}  Ne7 {[%clk 0:02:55]} 8. Nge2 {[%clk 0:02:42]}  a5 {[%clk 0:02:54]} 9. O-O {[%clk 0:02:38]}  d6 {[%clk 0:02:54]} 10. f4 {[%clk 0:02:13]}  exf4 {[%clk 0:02:47]} 11. exf4 {[%clk 0:02:14]}  Bf5 {[%clk 0:02:44]} 12. Qc2 {[%clk 0:02:09]}  Qd7 {[%clk 0:02:45]} 13. Kh1 {[%clk 0:02:06]}  Bxd3 {[%clk 0:02:07]} 14. Qxd3 {[%clk 0:02:07]}  Qf5 {[%clk 0:02:06]} 15. Qe3 {[%clk 0:02:05]}  Rae8 {[%clk 0:02:03]} 16. Nd4 {[%clk 0:02:05]}  Qh5 {[%clk 0:02:03]} 17. Qd3 {[%clk 0:01:54]}  Bc5 {[%clk 0:02:01]} 18. Nf3 {[%clk 0:01:26]}  Nf5 {[%clk 0:01:53]} 19. Ng5 {[%clk 0:01:09]}  Ne3 {[%clk 0:00:47]} 20. Bxe3 {[%clk 0:00:36]}  Rxe3 {[%clk 0:00:48]} 21. Qd1 {[%clk 0:00:36]}  Qxd1 {[%clk 0:00:47]} 22. Raxd1 {[%clk 0:00:35]}  Rfe8 {[%clk 0:00:47]} 23. Nf3 {[%clk 0:00:31]}  h6 {[%clk 0:00:42]} 24. Nd4 {[%clk 0:00:19]}  Ng4 {[%clk 0:00:26]} 25. h3 {[%clk 0:00:18]}  Bxd4 {[%clk 0:00:19]} 26. Rxd4 {[%clk 0:00:16]}  Re1 {[%clk 0:00:20]} 27. Kg1 {[%clk 0:00:13]}  Nf6 {[%clk 0:00:17]} 28. Rd1 {[%clk 0:00:12]}  R1e7 {[%clk 0:00:16]} 29. Kf2 {[%clk 0:00:11]}  Ne4+ {[%clk 0:00:16]} 30. Kg1 {[%clk 0:00:05]}  Nxc3 {[%clk 0:00:14]} 31. bxc3 {[%clk 0:00:06]}  b6 {[%clk 0:00:14]} 32. Rd3 {[%clk 0:00:05]}  Re4 {[%clk 0:00:14]} 33. g3 {[%clk 0:00:05]}  Rxc4 {[%clk 0:00:14]} 34. Rfd1 {[%clk 0:00:05]}  Re2 {[%clk 0:00:13]} 35. Kf1 {[%clk 0:00:05]}  Rxa2 {[%clk 0:00:14]} 36. Re1 {[%clk 0:00:05]}  Rc2 {[%clk 0:00:13]} 37. Re8+ {[%clk 0:00:05]}  Kh7 {[%clk 0:00:14]} 38. Re7 {[%clk 0:00:04]}  R4xc3 {[%clk 0:00:14]} 39. Rxc3 {[%clk 0:00:04]}  Rxc3 {[%clk 0:00:15]} 40. Rxf7 {[%clk 0:00:04]}  a4 {[%clk 0:00:15]} 41. Kf2 {[%clk 0:00:03]}  a3 {[%clk 0:00:16]} 42. Rf8 {[%clk 0:00:04]}  b5 {[%clk 0:00:16]} 43. Ra8 {[%clk 0:00:03]}  b4 {[%clk 0:00:16]} 44. Ra4 {[%clk 0:00:03]}  Rc2+ {[%clk 0:00:16]} 45. Kf3 {[%clk 0:00:03]}  a2 {[%clk 0:00:17]} 46. Kg4 {[%clk 0:00:02]}  b3 {[%clk 0:00:17]} 47. h4 {[%clk 0:00:03]}  b2 {[%clk 0:00:18]} 48. Rxa2 {[%clk 0:00:02]}  b1=Q {[%clk 0:00:18]} 49. Rxc2 {[%clk 0:00:03]}  Qxc2 {[%clk 0:00:19]} 50. h5 {[%clk 0:00:03]}  Qd1+ {[%clk 0:00:19]} 51. Kh3 {[%clk 0:00:03]}  Qxd5 {[%clk 0:00:20]} 52. g4 {[%clk 0:00:02]}  Qf3+ {[%clk 0:00:20]} 53. Kh4 {[%clk 0:00:02]}  Qxf4 {[%clk 0:00:21]} 54. Kh3 {[%clk 0:00:03]}  c5 {[%clk 0:00:20]} 55. Kg2 {[%clk 0:00:04]}  Qxg4+ {[%clk 0:00:20]} 56. Kf2 {[%clk 0:00:04]}  Qxh5 {[%clk 0:00:21]} 57. Ke3 {[%clk 0:00:05]}  Qd5 {[%clk 0:00:21]} 58. Kf4 {[%clk 0:00:05]}  c4 {[%clk 0:00:22]} 59. Kg3 {[%clk 0:00:06]}  c3 {[%clk 0:00:22]} 60. Kh4 {[%clk 0:00:07]}  c2 {[%clk 0:00:23]} 61. Kg3 {[%clk 0:00:08]}  c1=Q {[%clk 0:00:23]} 62. Kh4 {[%clk 0:00:08]}  Qcg5+ {[%clk 0:00:23]} 63. Kh3 {[%clk 0:00:09]}  Qdg2# {[%clk 0:00:23]} 0-1


[Site "https://www.chess.com"]

[Event "Titled Tuesday Blitz January 10 Early 2023"]
[White "Samunenkov, Ihor"]
[Black "Dominguez Perez, Leinier"]
[WhiteFideId "14187086"]
[BlackFideId "3503240"]
[WhiteElo "2501"]
[BlackElo "2739"]
[Result "0-1"]
[Round "08"]
[TimeControl "180+2"]
[Date "2023.01.10"]
[WhiteClock "0:00:01"]
[BlackClock "0:00:07"]

1. d4 {[%clk 0:03:00]}  d5 {[%clk 0:02:59]} 2. c4 {[%clk 0:03:01]}  dxc4 {[%clk 0:02:59]} 3. Nf3 {[%clk 0:03:00]}  c6 {[%clk 0:02:58]} 4. e3 {[%clk 0:02:46]}  Be6 {[%clk 0:02:56]} 5. Qc2 {[%clk 0:02:12]}  b5 {[%clk 0:02:47]} 6. b3 {[%clk 0:02:08]}  cxb3 {[%clk 0:02:20]} 7. axb3 {[%clk 0:02:08]}  Nf6 {[%clk 0:02:15]} 8. Bd3 {[%clk 0:02:01]}  g6 {[%clk 0:02:12]} 9. O-O {[%clk 0:02:00]}  Bg7 {[%clk 0:02:11]} 10. Bd2 {[%clk 0:01:32]}  a5 {[%clk 0:02:01]} 11. Nc3 {[%clk 0:01:02]}  O-O {[%clk 0:01:58]} 12. Ne2 {[%clk 0:01:03]}  Qb6 {[%clk 0:01:35]} 13. Nf4 {[%clk 0:00:59]}  Bc8 {[%clk 0:01:25]} 14. e4 {[%clk 0:00:49]}  Bg4 {[%clk 0:01:04]} 15. Be3 {[%clk 0:00:29]}  Bxf3 {[%clk 0:01:04]} 16. gxf3 {[%clk 0:00:30]}  Qb7 {[%clk 0:00:59]} 17. Bd2 {[%clk 0:00:24]}  Qb6 {[%clk 0:00:41]} 18. Be3 {[%clk 0:00:24]}  Qd8 {[%clk 0:00:41]} 19. Rfc1 {[%clk 0:00:20]}  Nfd7 {[%clk 0:00:37]} 20. e5 {[%clk 0:00:18]}  e6 {[%clk 0:00:37]} 21. Be4 {[%clk 0:00:18]}  Ra6 {[%clk 0:00:32]} 22. Kh1 {[%clk 0:00:18]}  Qh4 {[%clk 0:00:25]} 23. Nd3 {[%clk 0:00:17]}  Qe7 {[%clk 0:00:16]} 24. f4 {[%clk 0:00:14]}  Nb6 {[%clk 0:00:15]} 25. Nc5 {[%clk 0:00:12]}  Ra7 {[%clk 0:00:15]} 26. Bd2 {[%clk 0:00:08]}  b4 {[%clk 0:00:15]} 27. Bg2 {[%clk 0:00:05]}  Nd5 {[%clk 0:00:15]} 28. Ne4 {[%clk 0:00:04]}  Rd8 {[%clk 0:00:14]} 29. Nd6 {[%clk 0:00:04]}  Rxd6 {[%clk 0:00:13]} 30. exd6 {[%clk 0:00:05]}  Qxd6 {[%clk 0:00:13]} 31. Qe4 {[%clk 0:00:06]}  Nd7 {[%clk 0:00:13]} 32. Rc2 {[%clk 0:00:04]}  Bf6 {[%clk 0:00:11]} 33. Rca2 {[%clk 0:00:04]}  Qc7 {[%clk 0:00:10]} 34. Rc1 {[%clk 0:00:03]}  Qb6 {[%clk 0:00:11]} 35. Rac2 {[%clk 0:00:03]}  Rc7 {[%clk 0:00:11]} 36. Rc4 {[%clk 0:00:02]}  Kg7 {[%clk 0:00:10]} 37. Qd3 {[%clk 0:00:03]}  Qb5 {[%clk 0:00:07]} 38. Be3 {[%clk 0:00:03]}  N7b6 {[%clk 0:00:07]} 39. Bxd5 {[%clk 0:00:01]}  exd5 {[%clk 0:00:07]} 0-1


[Site "https://www.chess.com"]

[Event "Titled Tuesday Blitz January 10 Early 2023"]
[White "Goltsev, Dmitry"]
[Black "Tomashevsky, Evgeny"]
[WhiteFideId "24176710"]
[BlackFideId "4147235"]
[WhiteElo "2269"]
[BlackElo "2694"]
[Result "0-1"]
[Round "08"]
[TimeControl "180+2"]
[Date "2023.01.10"]
[WhiteClock "0:00:03"]
[BlackClock "0:00:46"]

1. e4 {[%clk 0:02:59]}  e5 {[%clk 0:02:52]} 2. Nf3 {[%clk 0:02:59]}  Nc6 {[%clk 0:02:52]} 3. Bb5 {[%clk 0:02:59]}  a6 {[%clk 0:02:50]} 4. Ba4 {[%clk 0:03:00]}  Nf6 {[%clk 0:02:51]} 5. O-O {[%clk 0:03:00]}  Be7 {[%clk 0:02:50]} 6. Re1 {[%clk 0:03:00]}  b5 {[%clk 0:02:50]} 7. Bb3 {[%clk 0:03:00]}  O-O {[%clk 0:02:51]} 8. c3 {[%clk 0:02:59]}  d6 {[%clk 0:02:51]} 9. h3 {[%clk 0:02:58]}  Nb8 {[%clk 0:02:49]} 10. d4 {[%clk 0:02:58]}  Nbd7 {[%clk 0:02:50]} 11. Nbd2 {[%clk 0:02:59]}  Bb7 {[%clk 0:02:49]} 12. Qe2 {[%clk 0:02:51]}  Re8 {[%clk 0:02:47]} 13. Ng5 {[%clk 0:02:51]}  Rf8 {[%clk 0:02:47]} 14. Ngf3 {[%clk 0:02:51]}  h6 {[%clk 0:02:37]} 15. Nh4 {[%clk 0:02:48]}  c5 {[%clk 0:02:32]} 16. Nf5 {[%clk 0:02:41]}  Re8 {[%clk 0:02:29]} 17. d5 {[%clk 0:02:38]}  Bf8 {[%clk 0:02:26]} 18. Bc2 {[%clk 0:02:38]}  g6 {[%clk 0:02:26]} 19. Ng3 {[%clk 0:02:36]}  Bg7 {[%clk 0:02:21]} 20. a4 {[%clk 0:02:30]}  c4 {[%clk 0:02:20]} 21. Ndf1 {[%clk 0:02:17]}  Nc5 {[%clk 0:02:18]} 22. a5 {[%clk 0:02:11]}  Bc8 {[%clk 0:02:17]} 23. Be3 {[%clk 0:02:07]}  h5 {[%clk 0:02:16]} 24. f3 {[%clk 0:01:57]}  h4 {[%clk 0:02:13]} 25. Nh1 {[%clk 0:01:58]}  Nh5 {[%clk 0:02:13]} 26. Nf2 {[%clk 0:01:57]}  Bf6 {[%clk 0:01:50]} 27. Qd2 {[%clk 0:01:52]}  Nf4 {[%clk 0:01:40]} 28. Ng4 {[%clk 0:01:47]}  Bg5 {[%clk 0:01:39]} 29. Rab1 {[%clk 0:01:30]}  Kg7 {[%clk 0:01:37]} 30. Red1 {[%clk 0:01:20]}  Qxa5 {[%clk 0:01:36]} 31. Qf2 {[%clk 0:01:14]}  Qc7 {[%clk 0:01:33]} 32. Bxc5 {[%clk 0:01:11]}  Qxc5 {[%clk 0:01:32]} 33. Qxc5 {[%clk 0:01:11]}  dxc5 {[%clk 0:01:33]} 34. Kf2 {[%clk 0:01:09]}  a5 {[%clk 0:01:31]} 35. Nfe3 {[%clk 0:01:08]}  a4 {[%clk 0:01:30]} 36. Ra1 {[%clk 0:01:07]}  Bd7 {[%clk 0:01:30]} 37. d6 {[%clk 0:00:50]}  Ra6 {[%clk 0:01:29]} 38. Nd5 {[%clk 0:00:47]}  Bd8 {[%clk 0:01:10]} 39. Nxf4 {[%clk 0:00:29]}  exf4 {[%clk 0:01:10]} 40. Rd5 {[%clk 0:00:29]}  b4 {[%clk 0:01:08]} 41. Ne5 {[%clk 0:00:19]}  Be6 {[%clk 0:01:00]} 42. Rd2 {[%clk 0:00:11]}  b3 {[%clk 0:00:58]} 43. Bd1 {[%clk 0:00:09]}  Bf6 {[%clk 0:00:56]} 44. Ng4 {[%clk 0:00:07]}  Bxg4 {[%clk 0:00:56]} 45. hxg4 {[%clk 0:00:08]}  a3 {[%clk 0:00:55]} 46. Rc1 {[%clk 0:00:04]}  a2 {[%clk 0:00:49]} 47. Ra1 {[%clk 0:00:04]}  Rd8 {[%clk 0:00:48]} 48. Be2 {[%clk 0:00:03]}  Raxd6 {[%clk 0:00:47]} 49. Rxd6 {[%clk 0:00:02]}  Rxd6 {[%clk 0:00:48]} 50. Bxc4 {[%clk 0:00:02]}  Rd2+ {[%clk 0:00:47]} 51. Kf1 {[%clk 0:00:02]}  Rxb2 {[%clk 0:00:47]} 52. Bxb3 {[%clk 0:00:03]}  Rb1+ {[%clk 0:00:46]} 0-1


[Site "https://www.chess.com"]

[Event "Titled Tuesday Blitz January 10 Early 2023"]
[White "Seo, Jung Min"]
[Black "Zhigalko, Sergei"]
[WhiteFideId "1734687"]
[BlackFideId "13502956"]
[WhiteElo "2494"]
[BlackElo "2572"]
[Result "1-0"]
[Round "08"]
[TimeControl "180+2"]
[Date "2023.01.10"]
[WhiteClock "0:00:44"]
[BlackClock "0:00:02"]

1. Nf3 {[%clk 0:03:00]}  d5 {[%clk 0:02:59]} 2. d4 {[%clk 0:02:59]}  e6 {[%clk 0:02:58]} 3. c4 {[%clk 0:02:59]}  c6 {[%clk 0:02:57]} 4. Bg5 {[%clk 0:02:59]}  Be7 {[%clk 0:02:57]} 5. Bxe7 {[%clk 0:02:59]}  Qxe7 {[%clk 0:02:58]} 6. e3 {[%clk 0:02:59]}  Nf6 {[%clk 0:02:59]} 7. Nc3 {[%clk 0:03:00]}  O-O {[%clk 0:02:59]} 8. h3 {[%clk 0:02:57]}  Nbd7 {[%clk 0:02:59]} 9. Rc1 {[%clk 0:02:57]}  Re8 {[%clk 0:02:59]} 10. cxd5 {[%clk 0:02:57]}  exd5 {[%clk 0:02:59]} 11. Bd3 {[%clk 0:02:57]}  Ne4 {[%clk 0:02:58]} 12. O-O {[%clk 0:02:58]}  Nf8 {[%clk 0:02:31]} 13. Qc2 {[%clk 0:02:57]}  Ng6 {[%clk 0:02:25]} 14. b4 {[%clk 0:02:50]}  Bf5 {[%clk 0:02:06]} 15. b5 {[%clk 0:02:28]}  Qf6 {[%clk 0:02:06]} 16. bxc6 {[%clk 0:02:19]}  bxc6 {[%clk 0:02:06]} 17. Bxe4 {[%clk 0:02:09]}  dxe4 {[%clk 0:02:05]} 18. Nd2 {[%clk 0:02:10]}  Nh4 {[%clk 0:02:05]} 19. Kh2 {[%clk 0:02:05]}  Re6 {[%clk 0:01:39]} 20. Ne2 {[%clk 0:01:29]}  Nf3+ {[%clk 0:00:46]} 21. Kh1 {[%clk 0:01:27]}  Qg5 {[%clk 0:00:27]} 22. Ng3 {[%clk 0:01:20]}  Nh4 {[%clk 0:00:04]} 23. Qc5 {[%clk 0:01:16]}  h6 {[%clk 0:00:03]} 24. Nc4 {[%clk 0:01:07]}  a6 {[%clk 0:00:03]} 25. Nd6 {[%clk 0:01:05]}  Bg6 {[%clk 0:00:02]} 26. Qxg5 {[%clk 0:01:03]}  hxg5 {[%clk 0:00:03]} 27. Rxc6 {[%clk 0:00:54]}  Rd8 {[%clk 0:00:03]} 28. Nc8 {[%clk 0:00:53]}  Rxc6 {[%clk 0:00:02]} 29. Ne7+ {[%clk 0:00:53]}  Kf8 {[%clk 0:00:03]} 30. Nxc6 {[%clk 0:00:54]}  Rc8 {[%clk 0:00:03]} 31. Ne5 {[%clk 0:00:47]}  Rc2 {[%clk 0:00:02]} 32. Nxg6+ {[%clk 0:00:47]}  Nxg6 {[%clk 0:00:01]} 33. Nxe4 {[%clk 0:00:47]}  Rxa2 {[%clk 0:00:01]} 34. Nxg5 {[%clk 0:00:47]}  a5 {[%clk 0:00:02]} 35. Kg1 {[%clk 0:00:47]}  a4 {[%clk 0:00:02]} 36. Rb1 {[%clk 0:00:44]} 1-0


[Site "https://www.chess.com"]

[Event "Titled Tuesday Blitz January 10 Early 2023"]
[White "Taboas Rodriguez, Daniel"]
[Black "Rozman, Levy"]
[WhiteFideId "2208466"]
[BlackFideId "2039877"]
[WhiteElo "2371"]
[BlackElo "2322"]
[Result "1-0"]
[Round "08"]
[TimeControl "180+2"]
[Date "2023.01.10"]
[WhiteClock "0:00:17"]
[BlackClock "0:00:02"]

1. d4 {[%clk 0:03:00]}  g6 {[%clk 0:03:00]} 2. Nf3 {[%clk 0:03:00]}  Bg7 {[%clk 0:03:00]} 3. c4 {[%clk 0:03:00]}  d6 {[%clk 0:03:00]} 4. Nc3 {[%clk 0:03:01]}  Bg4 {[%clk 0:02:59]} 5. e3 {[%clk 0:03:00]}  Nc6 {[%clk 0:02:58]} 6. Be2 {[%clk 0:03:01]}  e5 {[%clk 0:02:57]} 7. d5 {[%clk 0:02:59]}  Nce7 {[%clk 0:02:54]} 8. e4 {[%clk 0:02:58]}  Bd7 {[%clk 0:02:53]} 9. O-O {[%clk 0:02:56]}  h6 {[%clk 0:02:52]} 10. b4 {[%clk 0:02:55]}  f5 {[%clk 0:02:52]} 11. c5 {[%clk 0:02:52]}  Nf6 {[%clk 0:02:49]} 12. Bd3 {[%clk 0:02:47]}  f4 {[%clk 0:02:46]} 13. Nd2 {[%clk 0:02:39]}  a6 {[%clk 0:02:28]} 14. Nc4 {[%clk 0:02:39]}  Bc8 {[%clk 0:02:26]} 15. a4 {[%clk 0:02:36]}  O-O {[%clk 0:02:22]} 16. Ba3 {[%clk 0:02:32]}  Ne8 {[%clk 0:02:16]} 17. b5 {[%clk 0:02:32]}  f3 {[%clk 0:01:54]} 18. b6 {[%clk 0:02:23]}  fxg2 {[%clk 0:01:43]} 19. Kxg2 {[%clk 0:02:13]}  Qd7 {[%clk 0:01:37]} 20. Kh1 {[%clk 0:01:57]}  Qh3 {[%clk 0:01:25]} 21. f3 {[%clk 0:01:56]}  dxc5 {[%clk 0:01:04]} 22. bxc7 {[%clk 0:01:50]}  Rf7 {[%clk 0:00:34]} 23. Bxc5 {[%clk 0:01:47]}  g5 {[%clk 0:00:33]} 24. d6 {[%clk 0:01:42]}  Ng6 {[%clk 0:00:32]} 25. Nd5 {[%clk 0:01:37]}  Nh4 {[%clk 0:00:30]} 26. Qe2 {[%clk 0:01:29]}  g4 {[%clk 0:00:23]} 27. Rg1 {[%clk 0:00:44]}  Rxf3 {[%clk 0:00:19]} 28. Ne7+ {[%clk 0:00:41]}  Kh8 {[%clk 0:00:19]} 29. Nxc8 {[%clk 0:00:41]}  Nf6 {[%clk 0:00:15]} 30. Nxe5 {[%clk 0:00:32]}  Nh5 {[%clk 0:00:06]} 31. Rxg4 {[%clk 0:00:28]}  Rg3 {[%clk 0:00:03]} 32. d7 {[%clk 0:00:20]}  Bxe5 {[%clk 0:00:02]} 33. d8=Q+ {[%clk 0:00:19]}  Kh7 {[%clk 0:00:03]} 34. Qe7+ {[%clk 0:00:18]}  Bg7 {[%clk 0:00:02]} 35. e5+ {[%clk 0:00:17]}  Kh8 {[%clk 0:00:02]} 36. Qe8+ {[%clk 0:00:17]} 1-0


[Site "https://www.chess.com"]